{"text_format":"1","workbook":"xlsx","n_sheets":3,"sheets":["Worksheet","Data_Departments","Data_Flow"],"not_rendered":{"charts":0,"images":0,"macros":1,"external_links":0,"defined_names":2,"comments":0,"pivot_tables":0},"unopened":[],"bounds":{"document_bytes":16777216,"sheet_cells":100000,"rows_first":2000,"rows_last":500,"rows_between":2000,"halvings":0,"cell_chars":16384,"cell_head_chars":4096},"cells_cut":0,"cells_raw":0,"read":"whole","date_system":"1900"}

{"sheet":"Worksheet","index":0,"n_rows":8,"n_cols":17,"rows_kept":8,"cut":false,"hidden":false,"merged":[]}
[]
[]
[]
[]
[]
[]
[null,null,null,null,null,null,null,null,null,null,null,null,null,null,null,null,"Click the button \"Circle method…\" to open"]
[null,null,null,null,null,null,null,null,null,null,null,null,null,null,null,null,"the dialog box!"]

{"sheet":"Data_Departments","index":1,"n_rows":16,"n_cols":11,"rows_kept":16,"cut":false,"hidden":false,"merged":[]}
["Pos","Department","Caption","Start-Department","End-Department","In going connections","Out going connections","Count:",{"$f":"COUNT(D:D)","v":15},null,"Attention: The department caption has to be unique!"]
[15,"C","Example C",0,0.05,{"$f":"COUNTIF(Data_Flow!A:A,B2)","v":1},{"$f":"COUNTIF(Data_Flow!B:B,B2)","v":1}]
[14,"A","Example A",0.12,0,{"$f":"COUNTIF(Data_Flow!A:A,B3)","v":1},{"$f":"COUNTIF(Data_Flow!B:B,B3)","v":1}]
[13,"B","Example B",0.95,0.02,{"$f":"COUNTIF(Data_Flow!A:A,B4)","v":1},{"$f":"COUNTIF(Data_Flow!B:B,B4)","v":2}]
[12,"J","Example J",0,0,{"$f":"COUNTIF(Data_Flow!A:A,B5)","v":2},{"$f":"COUNTIF(Data_Flow!B:B,B5)","v":1}]
[11,"D","Example D",0,0.02,{"$f":"COUNTIF(Data_Flow!A:A,B6)","v":1},{"$f":"COUNTIF(Data_Flow!B:B,B6)","v":1}]
[10,"F","Example F",0,0,{"$f":"COUNTIF(Data_Flow!A:A,B7)","v":1},{"$f":"COUNTIF(Data_Flow!B:B,B7)","v":2}]
[9,"M","Example M",0,0,{"$f":"COUNTIF(Data_Flow!A:A,B8)","v":2},{"$f":"COUNTIF(Data_Flow!B:B,B8)","v":1}]
[8,"L","Example L",0,1,{"$f":"COUNTIF(Data_Flow!A:A,B9)","v":0},{"$f":"COUNTIF(Data_Flow!B:B,B9)","v":1}]
[7,"G","Example G",0,0.05,{"$f":"COUNTIF(Data_Flow!A:A,B10)","v":2},{"$f":"COUNTIF(Data_Flow!B:B,B10)","v":2}]
[6,"I","Example I",0,1,{"$f":"COUNTIF(Data_Flow!A:A,B11)","v":0},{"$f":"COUNTIF(Data_Flow!B:B,B11)","v":1}]
[5,"O","Example O",0,0,{"$f":"COUNTIF(Data_Flow!A:A,B12)","v":1},{"$f":"COUNTIF(Data_Flow!B:B,B12)","v":1}]
[4,"N","Example N",0,0,{"$f":"COUNTIF(Data_Flow!A:A,B13)","v":1},{"$f":"COUNTIF(Data_Flow!B:B,B13)","v":1}]
[3,"E","Example E",1,0.05,{"$f":"COUNTIF(Data_Flow!A:A,B14)","v":2},{"$f":"COUNTIF(Data_Flow!B:B,B14)","v":0}]
[2,"H","Example H",0,0.05,{"$f":"COUNTIF(Data_Flow!A:A,B15)","v":1},{"$f":"COUNTIF(Data_Flow!B:B,B15)","v":1}]
[1,"K","Example K",0,0,{"$f":"COUNTIF(Data_Flow!A:A,B16)","v":1},{"$f":"COUNTIF(Data_Flow!B:B,B16)","v":1}]

{"sheet":"Data_Flow","index":2,"n_rows":18,"n_cols":9,"rows_kept":18,"cut":false,"hidden":false,"merged":[]}
["From","To","Annual amount",null,null,"max amount",{"$f":"MAX(C:C)","v":15915},null,"Attention: The combination \"From\"/\"To\" has to be unique!"]
["F","L",15915]
["B","F",11395]
["J","G",9206]
["G","B",8568]
["C","J",7378]
["O","K",5210]
["A","F",5065]
["G","A",5065]
["N","M",4755]
["K","G",4709]
["M","C",4604]
["M","O",3878]
["E","N",3434]
["J","H",3363]
["E","D",3103]
["D","I",2978]
["H","B",2950]